Workbook

Sheet AUSF Balance
A1: Alaska Universal Service Administrative Company
A2: AUSF Annual Summary
A3: Period Ending December 31, 2023
A5: AUSF Balance | B5: Balance | C5: Remittance | D5: Interest Income | E5: Distribution
A7: Year end 2022 AUSF | B7: 1000 | C7: 318653299.3 | D7: 521771.01 | E7: 319174070.3
A8: 2023 AUSF Subtotal | B8: -2.328306437e-10 | C8: 12590317.92 | D8: 6218.16 | E8: 12596536.08
A9: Total AUSF at YE 2023 | B9: =B8+B7 -> 1000 | C9: =C8+C7 -> 331243617.2 | D9: =D8+D7 -> 527989.17 | E9: =E8+E7 -> 331770606.4
A17: Note:
A18: Interest income is shown by year for this schedule.

Sheet Revenues
A1: =+'AUSF Balance'!A1 -> Alaska Universal Service Administrative Company
A2: =+'AUSF Balance'!A2 -> AUSF Annual Summary
A3: =+'AUSF Balance'!A3 -> Period Ending December 31, 2023
A5: 2023 Reported Revenues | B5: Total Reported Revenues | C5: Local Revenue | D5: Wireless Revenue | E5: Interexchange Revenue | F5: Payphone Revenue | G5: Other Revenue | H5: Uncollectible Revenues | I5: VOIP Revenue
A7: Total Revenues by Service | B7: =SUM(C7:I7) -> 125586113.7 | C7: 61580540.85 | D7: 49402395.53 | E7: 10397960.14 | F7: 18357 | G7: 159494.47 | H7: -259104.3 | I7: 4286470.01

Sheet Disbursements
A1: =+'AUSF Balance'!A1 -> Alaska Universal Service Administrative Company
A2: =+'AUSF Balance'!A2 -> AUSF Annual Summary
A3: =+'AUSF Balance'!A3 -> Period Ending December 31, 2023
A5: 2009 Cash Distributions | B5: Total | E5: AUSF Administration
A7: Alaska Universal Service Administrative Company | B7: =SUM(E7:E7) -> 50251 | E7: 50251
A8: ACS of Alaska - Ft. Wainwright | B8: 0
A9: ACS of Alaska - Juneau | B9: 0
A10: ACS Anchorage | B10: 0
A11: ACS Fairbanks | B11: 0
A12: ACS of the Northland - Glacier State | B12: 0
A13: ACS of the Northland - Sitka | B13: 0
A14: ACS Wireless | B14: 0
A15: ADAK | B15: 0
A16: Alaska Digitel | B16: 0
A17: Alaska Telephone Company | B17: 0
A18: Arctic Slope Telephone Association Cooperative | B18: 0
A19: ASTAC Wireless | B19: 0
A20: Bristol Bay Telephone Cooperative | B20: 0
A21: Bristol Bay Cellular | B21: 0
A22: Bettles Telephone Company | B22: 0
A23: Bush-Tell | B23: 0
A24: Circle Telephone Company | B24: 0
A25: Cordova Telephone Cooperative | B25: 0
A26: Copper Valley Telephone Cooperative | B26: 0
A27: Copper Valley Cellular | B27: 0
A28: GCI* | B28: 0
A29: Interior Telephone Company | B29: 0
A30: Ketchikan Public Utilities | B30: 0
A31: Matanuska Telephone Association | B31: 0
A32: MTA Wireless | B32: 0
A33: Mukluk Telephone Company | B33: 0
A34: North Country Telephone Company | B34: 0
A35: Nushagak Electric & Telephone Cooperative | B35: 0
A36: OTZ Telephone Cooperative | B36: 0
A37: Summit Telephone Company | B37: 0
A38: Unicom | B38: 0
A39: United KUC | B39: 0
A40: United Utilities | B40: 0
A41: Yukon Telephone Company | B41: 0
A42: Total | B42: =SUM(B7:B41) -> 50251 | E42: =SUM(E7:E41) -> 50251
A44: *07/09: GCI consolidated all Lifeline accounts including wireless. (Alaska DIGITEL and UNICOM)
A54: =A1 -> Alaska Universal Service Administrative Company
A55: =A2 -> AUSF Annual Summary
A56: =A3 -> Period Ending December 31, 2023
A58: 2023 Cash Distributions | B58: Total | C58: 2023 Period ENS Support Paid in 2023 | D58: 2022 Period ENS Support Paid in 2023 | E58: AUSF Administration
A60: Alaska Universal Service Administrative Company | B60: =SUM(C60:E60) -> 104438.2 | E60: 104438.2
A61: ACS of Alaska - Ft. Wainwright | B61: 117688.3 | C61: 54705.57 | D61: 62982.73
A62: ACS Fairbanks | B62: 811071.62 | C62: 377013.94 | D62: 434057.68
A63: ACS of Alaska - Juneau | B63: 45913.46 | C63: 21342.15 | D63: 24571.31
A64: ACS of the Northland - Glacier State | B64: 1679448.62 | C64: 780665.4 | D64: 898783.22
A65: ACS of the Northland - Sitka | B65: 118515.64 | C65: 55090.14 | D65: 63425.5
A66: Adak | B66: 300163.35 | C66: 139647.38 | D66: 160515.97
A67: AECA ENS Admin Fee | B67: 101267.09 | C67: 47134.38 | D67: 54132.71
A68: Alaska Telephone Company | B68: 464186.81 | C68: 215957.32 | D68: 248229.49
A69: Arctic Slope Telephone Association Cooperative | B69: 419553.81 | C69: 195023.01 | D69: 224530.8
A70: Bristol Bay Telephone Cooperative | B70: 179314.07 | C70: 83423.71 | D70: 95890.36
A71: Bettles Telephone Company | B71: 2211.67 | C71: 1028.96 | D71: 1182.71
A72: Bush-Tell | B72: 138076.41 | C72: 64238.39 | D72: 73838.02
A73: Circle Telephone Company | B73: 14798.08 | C73: 6884.63 | D73: 7913.45
A74: Cordova Telephone Cooperative | B74: 307542.04 | C74: 142956.09 | D74: 164585.95
A75: Copper Valley Telephone Cooperative | B75: 1376572.15 | C75: 639878.01 | D75: 736694.14
A76: GCI | B76: 1197051.59 | C76: 556430.69 | D76: 640620.9
A77: Interior Telephone Company | B77: 668256.09 | C77: 310628.38 | D77: 357627.71
A78: Ketchikan Public Utilities | B78: 564021.1 | C78: 262176.38 | D78: 301844.72
A79: Matanuska Telephone Association | B79: =SUM(C79:E79) -> 3129495.73 | C79: 1454697.1 | D79: 1674798.63
A80: Mukluk Telephone Company | B80: 205433.82 | C80: 95492.69 | D80: 109941.13
A81: North Country Telephone Company | B81: 39377.98 | C81: 18320.13 | D81: 21057.85
A82: Nushagak Electric & Telephone Cooperative | B82: 226151.57 | C82: 105214.29 | D82: 120937.28
A83: OTZ Telephone Cooperative | B83: 319078.94 | C83: 148447.63 | D83: 170631.31
A84: Summit Telephone Company | B84: 132819.7 | C84: 61792.76 | D84: 71026.94
A85: United KUC | B85: 131637.96 | C85: 61242.97 | D85: 70394.99
A86: United Utilities | B86: 803470.02 | C86: 373804.74 | D86: 429665.28
A87: Yukon Telephone Company | B87: 36439.21 | C87: 16952.9 | D87: 19486.31
A89: Total | B89: =SUM(B60:B88) -> 13633995.03 | C89: =SUM(C60:C88) -> 6290189.74 | D89: =SUM(D60:D88) -> 7239367.09 | E89: =SUM(E60:E88) -> 104438.2
A90: *Revised on 03/07/2025 correcting for swapped distribution amounts of ACS of Alaska - Juneau and ACS Fairbanks.
